bitfinex-derivatives/quotes_ETHF0:USTF0_20250115
["timestamp","ask_amount","ask_price","bid_price","bid_amount"]
[1736916085240,3.71645296,3235.4,3235.1,40.8]
[1736916085742,3.40723296,3235.4,3235.1,41.10924]
[1736916085942,3.71645296,3235.4,3235.1,41.10924]
[1736916087141,6.92425296,3235.4,3235.1,41.10924]
[1736916087836,6.92425296,3235.4,3235.1,40.8]
[1736916088038,6.61503296,3235.4,3235.1,40.8]
[1736916088245,0.30922,3235.3,3235.1,40.8]
[1736916088440,0.4848,3235.2,3235.1,40.8]
[1736916088641,3.7920905,3235.2,3235.1,40.8]
[1736916089449,4.1013205,3235.2,3234.9,0.30926]
[1736916089842,3.7920905,3235.2,3235.0,40.8]
[1736916090048,3.7920905,3235.2,3235.0,41.10925]
[1736916090746,3.7920905,3235.2,3235.0,40.8]
[1736916090941,4.1013305,3235.2,3235.0,40.8]
[1736916091944,0.30924,3235.1,3235.0,40.8]
[1736916092447,3.85890587,3235.1,3235.0,40.8]
[1736916093149,3.85888949,3235.1,3235.0,40.8]
[1736916093347,3.8099534,3235.1,3235.0,40.8]
[1736916093749,3.85889068,3235.1,3235.0,40.8]
[1736916094446,3.5007134,3235.1,3235.0,40.8]
[1736916094646,3.5007134,3235.1,3235.0,41.10925]
[1736916098750,3.8099834,3235.1,3234.8,0.30929]
[1736916098952,0.30929,3234.9,3234.5,0.30932]
[1736916099250,0.4979,3235.0,3234.6,40.8]
[1736916099452,3.22979658,3234.8,3234.6,40.8]
[1736916099648,0.76449,3234.9,3234.6,41.10931]
[1736916099949,3.92993518,3234.9,3234.6,40.8]
[1736916100150,0.30929,3234.7,3234.6,40.8]
[1736916100551,3.78401518,3234.8,3234.6,40.8]
[1736916104752,0.30929,3234.7,3234.6,40.8]
[1736916104963,0.78369,3234.7,3234.6,40.8]
[1736916105147,4.315748,3234.7,3234.6,40.8]
[1736916105355,4.36469407,3234.7,3234.6,40.8]
[1736916107460,0.30933,3234.3,3234.2,3.2078]
[1736916107758,3.70680857,3234.3,3234.2,3.2078]
[1736916108453,3.70680857,3234.3,3234.2,44.0078]
[1736916111864,6.91460857,3234.3,3234.2,40.8]
[1736916112159,6.96355636,3234.3,3234.2,40.8]
[1736916112867,7.91615636,3234.3,3234.2,40.8]
[1736916113162,7.91614645,3234.3,3234.2,40.8]
[1736916115758,7.86720857,3234.3,3234.2,40.8]
[1736916116064,7.91614451,3234.3,3234.2,40.8]
[1736916116585,7.91614104,3234.3,3234.2,40.8]
[1736916118770,7.91612872,3234.3,3234.2,40.8]
[1736916120863,7.86720857,3234.3,3234.2,40.8]
[1736916121059,7.91608889,3234.3,3234.2,40.8]
[1736916123265,7.91606879,3234.3,3234.2,40.8]
[1736916123464,0.30937,3233.9,3233.6,0.30939]
[1736916123869,3.51728162,3233.8,3233.7,40.8]
[1736916124269,6.72508162,3233.8,3233.7,40.8]
[1736916124472,7.03446162,3233.8,3233.7,40.8]
[1736916124672,8.00966162,3233.8,3233.7,40.8]
[1736916126273,10.12264698,3233.8,3232.6,3.2078]
[1736916126575,0.30943,3233.3,3232.9,0.4793]
[1736916126771,0.30943,3233.3,3233.0,41.10945]
[1736916126972,3.48986421,3233.2,3233.0,41.10945]
[1736916128468,3.48986421,3233.2,3233.0,40.8]
[1736916128666,3.79930421,3233.2,3233.0,40.8]
[1736916128871,0.30944,3233.2,3233.0,40.8]
[1736916129074,3.27234778,3233.1,3233.0,40.8]
[1736916130389,0.30944,3233.1,3233.0,40.8]
[1736916130885,3.2566589,3233.1,3233.0,40.8]
[1736916131083,3.2566589,3233.1,3233.0,41.10945]
[1736916132788,3.2566589,3233.1,3233.0,40.8]
[1736916132989,3.5660989,3233.1,3233.0,40.8]
[1736916133890,3.2566589,3233.1,3233.0,40.8]
[1736916134189,3.5660989,3233.1,3233.0,40.8]
[1736916134987,3.2566589,3233.1,3233.0,40.8]
[1736916135293,3.2566589,3233.1,3233.0,41.10945]
[1736916135692,3.2566589,3233.1,3233.0,40.8]
[1736916136094,3.2566589,3233.1,3233.0,41.10945]
[1736916136589,3.2078,3233.4,3233.3,0.30943]
[1736916138498,0.30941,3233.5,3233.3,0.30943]
[1736916138794,0.30942,3233.4,3233.2,0.56513]
[1736916138990,0.9095,3233.7,3233.0,40.8]
[1736916139187,0.30944,3233.2,3233.0,40.8]
[1736916139794,0.30944,3233.2,3233.0,41.10945]
[1736916139991,3.5477383,3233.1,3233.0,41.10945]
[1736916140897,3.8571883,3233.1,3233.0,40.8]
[1736916141491,3.5477383,3233.1,3233.0,40.8]
[1736916142395,3.5477383,3233.1,3233.0,41.10945]
[1736916142696,3.5477383,3233.1,3233.0,40.8]
[1736916143395,3.8571883,3233.1,3233.0,40.8]
[1736916145797,3.5477383,3233.1,3233.0,41.10945]
[1736916146199,3.2078,3233.7,3233.0,40.8]
[1736916146493,0.30938,3233.8,3233.5,0.3094]
[1736916146696,0.30939,3233.7,3233.2,2.42236536]
[1736916146893,3.8609384,3233.7,3233.6,40.8]
[1736916147293,3.5515484,3233.7,3233.6,40.8]
[1736916147800,3.5515484,3233.7,3233.6,41.1094]
[1736916148000,3.5515484,3233.7,3233.6,40.8]
[1736916150105,0.30941,3233.5,3233.3,0.30943]
[1736916150399,0.993,3233.4,3233.3,41.10943]
[1736916150599,4.92017399,3233.4,3233.3,41.10943]
[1736916150805,4.42027399,3233.4,3233.3,41.10943]
[1736916152000,4.42027399,3233.4,3233.3,40.8]
[1736916152203,4.72969399,3233.4,3233.3,40.8]
[1736916153901,7.62807399,3233.4,3232.9,6.10636536]
[1736916154102,0.30944,3233.2,3233.0,0.30945]
[1736916154305,0.30945,3233.1,3233.0,41.10945]
[1736916155004,0.30945,3233.1,3233.0,40.8]
[1736916156001,0.30945,3233.1,3233.0,41.10946]
[1736916157704,0.4561,3233.3,3233.0,41.10946]
[1736916157909,0.30944,3233.2,3233.0,41.10946]
[1736916158502,0.76553,3233.3,3233.1,0.30944]
[1736916159801,0.76553,3233.3,3233.2,40.8]
[1736916160408,7.13097504,3233.3,3233.2,40.8]
[1736916160609,6.87043638,3233.3,3232.5,3.2078]
[1736916160934,0.30947,3232.9,3232.5,3.5173]
[1736916161103,1.3987,3232.8,3232.5,3.5173]
[1736916161305,4.97080521,3232.8,3232.5,3.5173]
[1736916161707,1.70818,3232.8,3232.6,40.8]
[1736916162120,0.30949,3232.7,3232.4,0.30951]
[1736916162309,1.3987,3232.8,3232.3,0.30952]
[1736916162509,0.3095,3232.6,3232.3,0.30952]
[1736916162813,0.30951,3232.5,3232.4,40.8]
[1736916163208,0.3095,3232.6,3232.4,40.8]
[1736916163409,1.3987,3232.8,3232.4,40.8]
[1736916163410,3.32336293,3232.5,3232.4,40.8]
[1736916163608,3.63286293,3232.5,3232.4,40.8]
[1736916163810,0.3095,3232.5,3232.4,40.8]
[1736916164008,3.7036289,3232.5,3232.4,40.8]
[1736916164806,3.3941289,3232.5,3232.4,40.8]
[1736916165006,3.3941289,3232.5,3232.4,41.10951]
[1736916165206,3.21939944,3232.6,3232.4,40.8]
[1736916165511,0.30949,3232.7,3232.4,40.8]
[1736916165712,3.21939944,3232.6,3232.4,40.8]
[1736916166217,3.52889944,3232.6,3232.4,40.8]
[1736916166604,0.3095,3232.6,3232.4,40.8]
[1736916166805,3.37457551,3232.5,3232.4,40.8]
[1736916168508,3.68408551,3232.5,3232.4,40.8]
[1736916168911,0.30951,3232.5,3232.4,40.8]
[1736916169114,3.60892578,3232.5,3232.4,40.8]
[1736916171910,3.29941578,3232.5,3232.4,40.8]
[1736916172113,3.60891578,3232.5,3232.4,40.8]
[1736916172417,0.3095,3232.5,3232.4,40.8]
[1736916172608,3.8018083,3232.5,3232.4,40.8]
[1736916173216,3.4923083,3232.5,3232.4,40.8]
[1736916173614,0.3095,3232.6,3232.4,40.8]
[1736916173915,3.39282118,3232.5,3232.4,40.8]
[1736916175511,0.30951,3232.5,3232.4,40.8]
[1736916175815,3.7558735,3232.5,3232.4,40.8]
[1736916179213,3.4463635,3232.5,3232.4,41.10951]
[1736916179722,3.46034667,3232.6,3232.4,40.8]
[1736916180014,3.76984667,3232.6,3232.4,40.8]
[1736916180216,0.3095,3232.6,3232.4,40.8]
[1736916180415,3.55430512,3232.5,3232.4,40.8]
[1736916180615,3.55430512,3232.5,3232.4,41.10951]
[1736916180814,3.86381512,3232.5,3232.4,40.8]
[1736916181218,0.30951,3232.5,3232.4,40.8]
[1736916181415,3.82964359,3232.5,3232.4,40.8]
[1736916182116,7.03744359,3232.5,3232.4,40.8]
[1736916182312,7.03744359,3232.5,3231.9,0.30956]
[1736916182313,0.30953,3232.2,3231.9,0.30956]
[1736916182518,1.45,3232.1,3231.3,2.42236536]
[1736916182715,4.91558358,3232.1,3231.8,0.30957]
[1736916182939,5.22513358,3232.1,3231.8,0.30957]
[1736916183225,8.12338358,3232.1,3231.3,43.95936536]
[1736916183516,0.30956,3232.0,3231.7,0.30957]
[1736916183717,0.30956,3232.0,3231.3,43.95936536]
[1736916183914,3.31309085,3231.9,3231.4,0.30961]
[1736916184117,3.31309085,3231.9,3231.8,0.30957]
[1736916184317,3.31309085,3232.0,3231.9,0.30956]
[1736916184711,0.30956,3232.0,3231.8,0.30957]
[1736916184917,3.5786269,3232.0,3231.8,0.30957]
[1736916186313,0.30957,3231.9,3231.3,44.38656536]
[1736916186518,3.58104145,3232.0,3231.8,0.30957]
[1736916187716,3.58104145,3232.0,3231.9,0.30956]
[1736916187925,3.27148145,3232.0,3231.9,0.30956]
[1736916188927,3.27148145,3232.0,3231.6,2.42236536]
[1736916189130,3.58103145,3232.0,3231.8,0.30956]
[1736916189334,5.69384681,3232.0,3231.3,40.8]
[1736916189520,0.3096,3231.6,3231.4,0.30961]
[1736916189722,0.4517,3231.5,3231.4,0.30961]
[1736916189921,4.38170215,3231.5,3231.4,0.30961]
[1736916190472,4.69130215,3231.5,3231.4,0.30961]
[1736916190628,4.38170215,3231.5,3231.4,0.30961]
[1736916194023,4.87390215,3231.5,3231.4,0.30961]
[1736916194624,0.30961,3231.4,3231.3,40.8]
[1736916194827,5.18351215,3231.5,3231.3,41.10962]
[1736916195630,4.87390215,3231.5,3231.3,41.10962]
[1736916196027,5.18350215,3231.5,3231.3,41.10962]
[1736916196327,4.87390215,3231.5,3231.3,41.10962]
[1736916199035,5.18350215,3231.5,3231.3,41.10962]
[1736916200032,5.18350215,3231.5,3231.3,40.8]
[1736916202835,5.18350215,3231.5,3231.3,41.10962]
[1736916205737,0.30961,3231.4,3231.3,40.8]
[1736916205936,3.92250215,3231.5,3231.3,43.22236536]
[1736916206136,3.47080215,3231.5,3231.4,0.30961]
[1736916210232,3.47080215,3231.5,3231.3,40.8]
[1736916210433,1.4093,3231.4,3231.3,41.10962]
[1736916210832,4.98519845,3231.4,3231.3,40.8]
[1736916213336,4.67558845,3231.4,3231.3,40.8]
[1736916214638,4.98519845,3231.4,3231.3,40.8]
[1736916214854,4.67558845,3231.4,3231.3,40.8]
[1736916215030,4.98519845,3231.4,3231.3,40.8]
[1736916215840,4.67558845,3231.4,3231.3,40.8]
[1736916216036,4.98519845,3231.4,3231.3,40.8]
[1736916216545,7.09795381,3231.4,3230.8,0.30967]
[1736916216734,0.30966,3231.0,3230.7,0.30967]
[1736916216943,0.30967,3230.8,3230.5,0.3097]
[1736916217139,0.30967,3230.8,3230.7,40.8]
[1736916217640,3.65353309,3230.8,3230.7,40.8]
[1736916219840,0.30969,3230.6,3230.3,0.30971]
[1736916220040,5.76622845,3230.8,3230.3,0.30971]
[1736916220342,3.59009044,3230.5,3230.3,0.30971]
[1736916220545,0.4686,3230.4,3230.3,0.30971]
[1736916220739,1.3764,3230.4,3230.2,41.10972]
[1736916220934,4.65679044,3230.4,3230.3,0.30972]
[1736916221838,4.96651044,3230.4,3230.2,40.8]
[1736916222041,0.30972,3230.3,3230.2,40.8]
[1736916222443,3.7129537,3230.3,3230.2,40.8]
[1736916224238,3.76173945,3230.3,3230.2,40.8]
[1736916224640,0.30979,3229.6,3229.3,3.2078]
[1736916224846,0.9224,3229.5,3229.3,3.51761]
[1736916225148,4.16787442,3229.5,3229.4,40.8]
[1736916225381,4.47766442,3229.5,3229.4,40.8]
[1736916225649,7.68546442,3229.5,3229.4,40.8]
[1736916226645,7.73423668,3229.5,3229.4,40.8]
[1736916226844,7.68546442,3229.5,3229.4,40.8]
[1736916227849,7.73423778,3229.5,3229.4,40.8]
[1736916228239,7.68546442,3229.5,3229.4,40.8]
[1736916228440,7.7342359,3229.5,3229.4,40.8]
[1736916228643,10.15660126,3229.5,3229.4,40.8]
[1736916231044,10.15659922,3229.5,3229.4,40.8]
[1736916233258,9.84680922,3229.5,3228.8,3.51765]
[1736916233449,0.30983,3229.1,3228.8,3.51765]
[1736916233652,0.4929,3229.0,3228.8,3.51765]
[1736916233850,3.98427573,3229.0,3228.9,40.8]
[1736916234979,4.29411573,3229.0,3228.9,40.8]
[1736916235754,4.76611573,3229.0,3228.9,40.8]
[1736916237756,4.76611573,3229.0,3228.0,0.6837]
[1736916237757,4.45627573,3229.0,3228.0,0.6837]
[1736916238055,0.30988,3228.7,3228.3,0.3099]
[1736916238251,0.30988,3228.7,3228.5,40.8]
[1736916238451,3.44969134,3228.6,3228.5,40.8]
[1736916239058,0.30987,3228.7,3228.5,40.8]
[1736916239271,3.89465944,3228.7,3228.5,40.8]
[1736916239450,0.30987,3228.7,3228.5,40.8]
[1736916239852,3.58478944,3228.6,3228.5,40.8]
[1736916242952,3.89466944,3228.6,3228.5,40.8]
[1736916243355,3.50642425,3228.8,3228.5,40.8]
[1736916243655,0.78866,3228.9,3228.6,0.30988]
[1736916243855,3.50642425,3228.8,3228.6,0.30988]
[1736916244058,3.81628425,3228.8,3228.5,41.10988]
[1736916245753,7.02408425,3228.8,3228.5,41.10988]
[1736916245959,6.71422425,3228.8,3228.5,41.10988]
[1736916246360,7.02408425,3228.8,3228.5,41.10988]
[1736916249467,6.71422425,3228.8,3228.5,40.8]
[1736916249901,0.30987,3228.7,3228.5,40.8]
[1736916250366,3.30120339,3228.6,3228.5,40.8]
[1736916251166,3.30120339,3228.6,3228.5,41.10989]
[1736916251669,3.27884427,3228.7,3228.5,41.10989]
[1736916251862,3.51767,3228.8,3228.5,41.10989]
[1736916252162,3.39688284,3228.7,3228.5,40.8]
[1736916252359,3.39688284,3228.7,3228.6,1.02778]
[1736916252966,3.39688284,3228.7,3228.6,1.45578]
[1736916254770,3.39688284,3228.7,3228.6,0.30988]
[1736916255581,3.70676284,3228.7,3228.5,41.10988]
[1736916256081,4.19886284,3228.7,3228.5,41.10988]
[1736916256581,0.30988,3228.6,3228.5,41.10988]
[1736916256778,0.30988,3228.6,3228.5,40.8]
[1736916256979,0.3099,3228.4,3228.1,3.2078]
[1736916257179,0.3099,3228.4,3228.2,0.30991]
[1736916257380,3.51062424,3228.3,3228.2,0.30991]
[1736916257584,3.51062424,3228.3,3228.2,41.10991]
[1736916258578,0.7922,3228.5,3228.4,0.3099]
[1736916258889,4.38462801,3228.5,3228.4,0.3099]
[1736916259279,4.38462801,3228.5,3228.4,41.1099]
[1736916259682,4.07472801,3228.5,3228.4,41.1099]
[1736916261585,4.07192728,3228.5,3228.4,41.1099]
[1736916266789,3.2078,3228.8,3228.7,0.30987]
[1736916267088,6.64121407,3228.8,3228.7,0.30987]
[1736916267279,6.64121407,3228.8,3228.7,1.46196946]
[1736916267990,3.2078,3229.2,3228.7,1.15209946]
[1736916268292,0.9686,3229.4,3229.3,0.30981]
[1736916268485,0.471,3229.4,3229.3,1.46190946]
[1736916268690,3.93176702,3229.4,3229.3,1.46190946]
[1736916268887,3.46076702,3229.4,3229.3,1.46190946]
[1736916269386,3.46076702,3229.4,3229.3,0.30981]
[1736916269789,3.46076702,3229.4,3229.3,41.10981]
[1736916276594,3.46076702,3229.4,3229.3,41.10981]
[1736916278499,0.4601,3229.7,3229.6,0.30978]
[1736916278702,3.2078,3230.0,3229.6,2.4328931]
[1736916278897,3.6842,3230.0,3229.9,0.30975]
[1736916279401,7.11141584,3230.0,3229.9,0.30975]
[1736916280103,7.11141584,3230.0,3229.5,3.2078]
[1736916280296,7.42116584,3230.0,3229.8,0.30976]
[1736916280497,7.11141584,3230.0,3229.5,3.2078]
[1736916280697,7.11141584,3230.0,3229.9,0.30975]
[1736916281604,6.63501584,3230.0,3229.9,0.30975]
[1736916283100,6.63501584,3230.0,3229.6,2.4328931]
[1736916283101,6.63501584,3230.0,3229.8,0.30976]
[1736916283305,6.94476584,3230.0,3229.8,0.30976]
[1736916284907,6.63501584,3230.0,3229.5,3.2078]
[1736916285096,6.63501584,3230.0,3229.9,0.30975]
[1736916288206,6.94475584,3230.0,3229.8,0.30976]
[1736916288509,0.4536,3229.9,3229.8,0.30976]
[1736916288911,3.71082686,3229.9,3229.8,0.30976]
[1736916291913,4.17502686,3229.9,3229.8,0.30976]
[1736916299925,3.72142686,3229.9,3229.8,0.30976]
[1736916300330,0.985,3230.4,3230.3,0.30971]
[1736916300527,0.4877,3230.4,3230.3,0.30971]
[1736916300718,3.93605669,3230.4,3230.3,0.30971]
[1736916300918,3.93605669,3230.4,3230.3,41.10971]
[1736916303617,3.93605669,3230.4,3229.7,3.2078]
[1736916303618,7.14385669,3230.4,3229.7,3.2078]
[1736916303813,7.14385669,3230.4,3229.8,0.30975]
[1736916304017,7.14385669,3230.4,3229.7,0.30977]
[1736916304218,2.4328931,3229.9,3229.3,3.2078]
[1736916304529,3.2078,3229.5,3229.3,0.3098]
[1736916304721,0.4558,3229.4,3229.3,41.1098]
[1736916304917,3.72121716,3229.4,3229.3,41.1098]
[1736916305617,4.03101716,3229.4,3229.3,40.8]
[1736916305819,3.72121716,3229.4,3229.3,40.8]
[1736916307219,3.72121716,3229.4,3229.3,41.10981]
[1736916315632,3.26541716,3229.4,3229.3,41.10981]
[1736916315831,3.2078,3229.5,3229.4,0.3098]
[1736916316034,3.2078,3229.5,3229.4,0.7376]
[1736916318938,3.97414,3230.1,3229.4,0.4278]
[1736916319140,3.6644,3230.1,3229.5,2.4328931]
[1736916319339,3.820563,3230.0,3229.8,0.30976]
[1736916320543,3.510813,3230.0,3229.9,0.30975]
[1736916328738,3.510813,3230.0,3229.4,3.2078]
[1736916328933,5.6406931,3229.9,3229.3,40.8]
[1736916329134,0.30978,3229.7,3229.5,0.30979]
[1736916329345,0.9459,3229.6,3229.5,0.30979]
[1736916329538,4.96785207,3229.6,3229.5,0.30979]
[1736916330746,5.27764207,3229.6,3229.4,0.3098]
[1736916330939,3.2078,3229.5,3229.4,0.3098]
[1736916331443,6.59330778,3229.5,3229.4,0.3098]
[1736916334941,3.38550778,3229.5,3229.4,0.3098]
[1736916335249,3.2078,3230.3,3230.1,0.30973]
[1736916335445,3.69,3230.3,3230.2,0.30973]
[1736916335849,3.70927764,3230.3,3230.2,0.30973]
[1736916336147,3.70927764,3230.3,3230.2,41.10973]
[1736916337143,3.22707764,3230.3,3230.2,41.10973]
[1736916337545,0.01927764,3230.3,3230.2,41.10973]
[1736916340556,0.01927764,3230.3,3229.8,3.2078]
[1736916340852,2.45217074,3230.3,3229.8,3.2078]
[1736916341057,0.4812,3230.2,3230.0,0.30974]
[1736916341355,1.24883,3230.2,3229.9,0.30975]
[1736916341651,3.24519396,3230.1,3229.9,0.30975]
[1736916342150,0.30975,3230.0,3229.8,3.2078]
[1736916342450,0.30974,3230.1,3229.8,3.51756]
[1736916342653,3.30451784,3229.9,3229.8,3.51756]
[1736916342847,3.30451784,3230.0,3229.8,3.51756]
[1736916343249,0.9391,3230.2,3229.8,3.2078]
[1736916343454,3.31848891,3230.0,3229.9,0.30975]
[1736916343656,3.31848891,3230.1,3229.9,0.30975]
[1736916343847,1.24883,3230.2,3229.9,0.30975]
[1736916344248,3.31848891,3230.1,3229.9,0.30975]
[1736916344449,3.31848891,3230.1,3229.8,3.2078]
[1736916344651,3.62822891,3230.1,3229.8,3.51756]
[1736916346258,3.31848891,3230.1,3229.8,3.51756]
[1736916346449,3.31848891,3230.1,3229.8,3.2078]
[1736916346649,3.31848891,3230.1,3229.9,0.30975]
[1736916346853,3.31848891,3230.1,3229.8,3.2078]
[1736916347158,0.4879,3230.4,3230.3,0.30972]
[1736916347552,3.79617876,3230.4,3230.3,0.30972]
[1736916347751,3.79617876,3230.4,3230.3,41.10972]
[1736916348045,4.10588876,3230.4,3230.3,40.8]
[1736916349056,3.84474258,3230.4,3229.8,3.2078]
[1736916349257,0.30973,3230.2,3229.9,0.30975]
[1736916349554,0.464,3230.1,3230.0,40.8]
[1736916349753,4.48076856,3230.1,3230.0,40.8]
[1736916349953,4.48076856,3230.1,3230.0,41.10974]
[1736916350153,4.79050856,3230.1,3230.0,40.8]
[1736916350354,4.48076856,3230.1,3230.0,40.8]
[1736916350857,7.68856856,3230.1,3230.0,40.8]
[1736916352456,7.68856856,3230.1,3230.0,41.10974]
[1736916352756,7.99830856,3230.1,3230.0,40.8]
[1736916355459,7.68856856,3230.1,3230.0,40.8]
[1736916356460,7.99830856,3230.1,3230.0,40.8]
[1736916357057,7.68856856,3230.1,3230.0,40.8]
[1736916357958,7.99830856,3230.1,3230.0,40.8]
[1736916358364,7.68856856,3230.1,3230.0,40.8]
[1736916359763,7.99829856,3230.1,3230.0,40.8]
[1736916360157,7.68856856,3230.1,3230.0,40.8]
[1736916360359,7.68856856,3230.1,3230.0,41.10974]
[1736916360559,7.68856856,3230.1,3230.0,40.8]
[1736916361264,7.68856856,3230.1,3230.0,41.10974]
[1736916362161,7.68856856,3230.1,3230.0,40.8]
[1736916362664,7.68856856,3230.1,3230.0,41.10974]
[1736916362861,7.68856856,3230.1,3230.0,40.8]
[1736916364761,7.68856856,3230.1,3230.0,41.10974]
[1736916364960,7.68856856,3230.1,3230.0,40.8]
[1736916366564,7.68856856,3230.1,3230.0,41.10974]
[1736916368075,7.68856856,3230.1,3230.0,40.8]
[1736916368470,7.68856856,3230.1,3230.0,41.10975]
[1736916368768,4.48076856,3230.1,3230.0,41.10975]
[1736916368969,7.68856856,3230.1,3230.0,41.10975]
[1736916371567,7.68856856,3230.1,3230.0,40.8]
[1736916372570,7.68856856,3230.1,3230.0,41.10974]
[1736916372767,6.76596856,3230.1,3230.0,41.10974]
[1736916373366,6.76596856,3230.1,3230.0,42.26314]
[1736916374373,6.76596856,3230.1,3230.0,41.10974]
[1736916379668,3.55816856,3230.1,3230.0,41.10974]
[1736916380175,3.40662407,3230.3,3230.2,0.30972]
[1736916380474,3.98221,3230.4,3230.2,0.30972]
[1736916380672,3.54588495,3230.3,3230.2,0.30972]
[1736916384077,3.2078,3230.8,3230.1,1.1549]
[1736916384279,3.2078,3230.8,3230.7,0.30968]
[1736916384584,6.55138752,3230.8,3230.7,0.30968]
[1736916384780,6.55138752,3230.8,3230.7,0.56558]
[1736916385281,6.55138752,3230.8,3230.7,0.30968]
[1736916386775,7.04018752,3230.8,3230.7,0.30968]
[1736916387392,6.55138752,3230.8,3230.7,0.30968]
[1736916388375,0.51067956,3231.2,3230.7,0.30968]
[1736916388571,0.51067956,3231.2,3231.1,0.30964]
[1736916389076,3.75733505,3231.2,3231.1,41.10964]
[1736916393183,3.24665549,3231.2,3231.1,41.10964]
[1736916393685,3.4032406,3231.3,3231.2,0.30963]
[1736916393888,3.7029,3231.4,3231.3,0.30962]
[1736916394189,7.1061406,3231.4,3231.3,0.30962]
[1736916397792,7.1061406,3231.4,3231.2,0.30962]
[1736916399192,7.4157506,3231.4,3231.0,40.8]
[1736916399397,7.1061406,3231.4,3231.0,41.10964]
[1736916399694,0.30962,3231.3,3231.0,41.10964]
[1736916400093,3.40080537,3231.2,3231.0,41.10964]
[1736916400291,3.2078,3231.1,3231.0,41.10964]
[1736916400693,6.70486301,3231.1,3231.0,41.10964]
[1736916402002,0.30965,3231.0,3230.4,0.9041]
[1736916402198,0.4623,3230.9,3230.3,3.2078]
[1736916402398,0.30968,3230.7,3230.4,0.3097]
[1736916402602,0.30968,3230.7,3230.5,40.8]
[1736916402901,3.56539607,3230.6,3230.5,40.8]
[1736916403093,3.56539607,3230.6,3230.3,3.2078]
[1736916403296,0.30972,3230.3,3229.9,0.30975]
[1736916403495,0.4547,3230.2,3229.9,0.30975]
[1736916403700,0.4728,3230.1,3230.0,40.8]
[1736916403910,0.78253,3230.1,3230.0,40.8]
[1736916404095,4.00186039,3230.1,3230.0,40.8]
[1736916404996,3.69213039,3230.1,3230.0,40.8]
[1736916405196,4.00186039,3230.1,3230.0,40.8]
[1736916405796,3.69213039,3230.1,3230.0,40.8]
[1736916406696,4.00186039,3230.1,3230.0,40.8]
[1736916407106,3.69213039,3230.1,3230.0,40.8]
[1736916407297,4.00186039,3230.1,3230.0,40.8]
[1736916407905,3.69213039,3230.1,3230.0,40.8]
[1736916408307,4.00186039,3230.1,3230.0,40.8]
[1736916408704,3.69213039,3230.1,3230.0,40.8]
[1736916409109,4.00186039,3230.1,3230.0,40.8]
[1736916412110,7.20966039,3230.1,3230.0,40.8]
[1736916417016,7.20966039,3230.1,3229.4,3.2078]
[1736916417017,9.33282349,3230.1,3229.4,3.2078]
[1736916417215,6.89993039,3230.1,3229.4,3.2078]
[1736916417516,0.30975,3230.0,3229.7,0.30977]
[1736916417704,0.30975,3230.0,3229.6,0.30978]
[1736916418018,3.33058123,3229.9,3229.6,0.30978]
[1736916418216,3.33058123,3229.9,3229.5,41.2276]
[1736916418508,0.30975,3230.0,3229.7,0.30976]
[1736916419121,3.29733137,3229.9,3229.7,0.30976]
[1736916419309,3.60709137,3229.9,3229.7,0.30976]
[1736916419709,0.30976,3229.9,3229.7,0.30976]
[1736916419909,3.4390576,3229.8,3229.7,0.30976]
[1736916420710,3.4390576,3229.9,3229.8,0.30976]
[1736916421108,0.30975,3230.0,3229.8,0.30976]
[1736916421515,3.3231236,3229.9,3229.8,0.30976]
[1736916421711,3.6806,3230.1,3230.0,0.30974]
[1736916421712,3.2078,3230.1,3230.0,0.30974]
[1736916422104,3.51754,3230.1,3229.9,0.79725]
[1736916422304,3.98044,3230.1,3229.9,0.4875]
[1736916422508,3.98044,3230.1,3229.6,0.2556]
[1736916422509,3.28655994,3230.0,3229.7,0.30977]
[1736916422710,0.30976,3229.8,3229.5,40.8]
[1736916422915,0.4841,3229.7,3229.5,40.8]
[1736916423118,4.32928219,3229.7,3229.6,0.30978]
[1736916423311,4.32928219,3229.7,3229.5,40.8]
[1736916423511,0.30978,3229.6,3229.5,40.8]
[1736916424007,7.06498169,3229.6,3229.5,40.8]
[1736916427611,0.30983,3229.2,3228.9,0.30984]
[1736916427814,0.936,3229.1,3228.9,0.30984]
[1736916428005,4.61738921,3229.1,3229.0,40.8]
[1736916433911,4.66581035,3229.1,3229.0,40.8]
[1736916434309,4.61738921,3229.1,3229.0,40.8]
[1736916434719,4.66578389,3229.1,3229.0,40.8]
[1736916435122,4.66578508,3229.1,3229.0,40.8]
[1736916435823,4.6657869,3229.1,3229.0,40.8]
[1736916438419,4.61738921,3229.1,3229.0,40.8]
[1736916441828,4.6658251,3229.1,3229.0,40.8]
[1736916442625,4.66582874,3229.1,3229.0,40.8]
[1736916443026,4.61738921,3229.1,3229.0,40.8]
[1736916443225,4.66582995,3229.1,3229.0,40.8]
[1736916443425,4.66583166,3229.1,3229.0,40.8]
[1736916443732,4.6658256,3229.1,3229.0,40.8]
[1736916445531,5.81829946,3229.1,3229.0,40.8]
[1736916448334,5.81828878,3229.1,3229.0,40.8]
[1736916448534,9.02608878,3229.1,3229.0,40.8]
[1736916451036,9.02612925,3229.1,3229.0,40.8]
[1736916451830,9.02613417,3229.1,3229.0,40.8]
[1736916452341,0.30991,3228.3,3228.2,0.2556]
[1736916452636,0.77461,3229.0,3228.2,0.2556]
[1736916452637,1.15246114,3228.5,3228.2,0.2556]
[1736916452834,1.26801,3229.0,3228.2,0.2556]
[1736916452835,3.77815563,3228.3,3228.2,0.2556]
[1736916453237,0.30991,3228.3,3228.2,41.0556]
[1736916453641,3.77815563,3228.3,3228.2,41.0556]
[1736916458840,3.77815563,3228.3,3228.2,41.36552]
[1736916459037,3.77815563,3228.3,3228.2,41.0556]